bitfinex/quotes_ETHUSD_20241216
["timestamp","ask_amount","ask_price","bid_price","bid_amount"]
[1734317298907,0.8087,3963.7,3962.6,2.01887]
[1734317299095,0.8087,3963.7,3962.2,0.12758504]
[1734317299096,0.8087,3963.7,3962.9,2.01871]
[1734317299273,0.8087,3963.7,3962.2,0.12758504]
[1734317299478,0.8087,3963.7,3963.0,2.01864]
[1734317299882,0.8087,3963.7,3963.0,2.01863]
[1734317300684,0.8087,3963.7,3962.2,0.12758504]
[1734317300887,0.8087,3963.7,3962.2,2.14665504]
[1734317301065,0.8087,3963.7,3962.7,2.01882]
[1734317301256,0.8087,3963.7,3962.2,2.01907]
[1734317301464,2.5226,3964.2,3961.4,4.95061553]
[1734317301465,0.8087,3963.4,3961.6,2.45946192]
[1734317301702,3.4306853,3963.2,3961.6,2.65353623]
[1734317301871,0.7925,3963.1,3961.9,2.01919]
[1734317303166,0.7925,3963.1,3962.0,2.01917]
[1734317304379,0.7925,3963.1,3962.1,2.01911]
[1734317304881,0.7925,3963.1,3961.7,2.01933]
[1734317305073,0.37638583,3963.0,3961.7,2.01933]
[1734317305269,0.7925,3963.1,3962.3,2.01902]
[1734317305709,0.7925,3963.1,3962.0,2.01913]
[1734317305899,0.7925,3963.1,3962.0,2.01915]
[1734317306212,0.7925,3963.1,3961.7,2.01933]
[1734317306396,0.8052,3962.9,3961.4,0.26132514]
[1734317306603,0.8052,3962.9,3961.8,2.01924]
[1734317307116,0.8052,3962.9,3961.9,2.0192]
[1734317308418,0.8052,3962.9,3961.3,0.50377833]
[1734317308624,0.8052,3962.9,3961.6,0.60936121]
[1734317308923,0.8156,3962.6,3961.6,2.01934]
[1734317309278,0.8156,3962.6,3961.6,2.01935]
[1734317309478,0.8156,3962.4,3960.9,2.01974]
[1734317309728,0.8156,3962.4,3961.1,0.5056045]
[1734317310018,0.8156,3962.4,3961.4,2.01948]
[1734317310180,0.8156,3962.4,3961.2,0.29295023]
[1734317310181,0.8156,3962.4,3961.3,2.01953]
[1734317310386,0.8156,3962.4,3961.9,2.01921]
[1734317310705,0.8156,3962.4,3961.2,0.60936121]
[1734317311020,0.8156,3962.4,3962.2,2.01907]
[1734317311921,1.31026921,3966.7,3961.9,2.01921]
[1734317311922,0.831,3963.6,3961.9,2.01921]
[1734317312083,0.831,3963.6,3962.2,0.29295023]
[1734317312420,0.831,3963.6,3962.9,2.01871]
[1734317312719,0.831,3963.6,3963.0,2.01867]
[1734317313323,0.831,3963.6,3962.5,2.01887]
[1734317313482,0.831,3963.6,3963.1,2.01861]
[1734317313685,0.831,3963.6,3963.5,2.01841]
[1734317314044,2.52194,3965.2,3963.1,2.01861]
[1734317314045,0.831,3964.6,3964.1,2.01809]
[1734317314345,0.831,3964.6,3962.9,2.01869]
[1734317314545,0.831,3964.6,3962.9,2.62805121]
[1734317314846,0.831,3964.6,3964.1,2.0181]
[1734317315031,0.831,3964.6,3963.6,2.01836]
[1734317316050,0.831,3964.6,3964.1,2.0181]
[1734317317131,0.831,3964.6,3963.9,2.01818]
[1734317317711,0.831,3964.6,3963.3,2.0185]
[1734317317712,0.831,3964.6,3962.4,0.7981]
[1734317317906,0.7693,3964.4,3962.4,0.7981]
[1734317318215,0.7693,3964.4,3963.6,2.01836]
[1734317318416,0.7693,3964.4,3963.0,2.01866]
[1734317318621,0.7693,3964.4,3963.5,2.0184]
[1734317319216,0.7693,3964.4,3963.6,2.01835]
[1734317319415,0.7693,3964.4,3963.7,2.0183]
[1734317319641,0.7693,3964.4,3962.8,0.12405624]
[1734317319859,0.7693,3964.4,3963.9,2.0182]
[1734317320663,0.7693,3964.4,3964.0,2.01816]
[1734317320864,0.7693,3964.4,3963.8,2.01822]
[1734317321143,0.7693,3964.4,3963.9,2.0182]
[1734317321729,0.7693,3964.4,3964.0,2.01815]
[1734317322560,0.7693,3964.4,3964.1,2.01809]
[1734317322750,0.7693,3964.4,3962.9,0.29295023]
[1734317323049,0.7693,3964.4,3963.8,2.01822]
[1734317324715,0.7693,3964.4,3964.0,2.01815]
[1734317324915,0.7693,3964.4,3964.2,2.01804]
[1734317327237,0.7693,3964.4,3963.4,1.04882436]
[1734317327238,0.7693,3964.4,3963.4,1.88152436]
[1734317327443,0.8141,3965.3,3965.2,2.01755]
[1734317327829,0.8141,3966.4,3964.5,1.12565023]
[1734317328031,0.8141,3966.4,3964.6,2.17580873]
[1734317328327,0.8141,3966.0,3964.9,2.01768]
[1734317328742,0.8141,3965.8,3964.9,2.01768]
[1734317329086,0.8141,3965.8,3964.3,2.01799]
[1734317329290,0.8141,3965.8,3964.4,2.17519938]
[1734317329776,0.8141,3965.8,3964.7,2.0178]
[1734317330146,0.8141,3965.8,3964.9,2.01768]
[1734317330599,0.03322182,3965.7,3964.9,2.01768]
[1734317331546,0.8141,3965.6,3964.6,2.01782]
[1734317331748,0.8141,3965.6,3964.3,2.01796]
[1734317332008,0.8141,3965.4,3964.3,2.01796]
[1734317332303,0.03322513,3965.3,3964.3,2.01796]
[1734317332445,0.84842513,3965.3,3964.0,0.19026937]
[1734317332650,0.8152,3965.3,3964.4,2.01795]
[1734317332889,0.0332064,3965.2,3964.1,2.01811]
[1734317333080,0.0332064,3965.2,3965.0,2.01762]
[1734317333282,0.8152,3965.3,3964.4,0.7949]
[1734317333484,0.8152,3965.3,3965.1,2.01755]
[1734317333817,2.77084,3967.0,3964.4,0.7949]
[1734317333818,0.8152,3965.8,3965.6,2.01733]
[1734317334105,0.03312002,3965.7,3965.6,2.01733]
[1734317334596,0.8152,3965.8,3965.6,2.01733]
[1734317334765,0.02786098,3965.7,3964.8,0.31641098]
[1734317335095,0.8152,3965.8,3965.6,2.01733]
[1734317335311,0.7731,3967.1,3966.0,2.01711]
[1734317335471,0.51572051,3967.0,3966.0,2.01711]
[1734317335670,0.79732025,3966.9,3966.0,2.01711]
[1734317335871,0.79732025,3966.9,3965.2,3.41232512]
[1734317336073,0.7731,3966.9,3966.7,2.01678]
[1734317336273,3.13572575,3968.2,3967.0,2.01661]
[1734317336274,0.7731,3968.1,3967.0,2.01661]
[1734317336460,0.12724006,3968.0,3967.0,2.01661]
[1734317337475,0.12724006,3968.0,3966.5,2.01689]
[1734317337854,0.7731,3968.1,3966.6,0.60936121]
[1734317338123,0.7731,3968.1,3967.7,2.01627]
[1734317338640,0.7731,3968.1,3967.4,2.0164]
[1734317338842,0.7731,3968.1,3966.7,0.7708]
[1734317339145,0.7731,3968.1,3967.1,2.01656]
[1734317339337,0.7731,3968.1,3966.7,0.7708]
[1734317339614,0.7731,3968.1,3967.2,2.01651]
[1734317340505,0.7731,3968.1,3966.7,1.06375023]
[1734317340719,0.7731,3968.1,3967.0,2.01662]
[1734317340879,0.7731,3968.1,3966.7,1.06375023]
[1734317341079,0.7731,3968.1,3967.1,2.01656]
[1734317341308,0.02319998,3968.0,3967.1,2.01656]
[1734317341810,0.02319998,3968.0,3967.2,2.01653]
[1734317342112,0.02319998,3968.0,3966.1,1.43858685]
[1734317342113,0.7884,3967.9,3966.1,1.43858685]
[1734317342439,0.81158751,3967.9,3966.7,2.01677]
[1734317342594,1.12156575,3967.9,3966.2,0.31641098]
[1734317342935,0.02317503,3967.8,3967.2,2.01651]
[1734317343233,0.02317503,3967.8,3966.8,2.01672]
[1734317343527,0.7884,3967.9,3966.9,2.01667]
[1734317343680,0.7884,3967.9,3967.0,2.01662]
[1734317343681,1.119243,3967.9,3967.0,2.01662]
[1734317343878,0.02306557,3967.8,3967.7,0.19026937]
[1734317344483,0.8087,3968.3,3967.7,0.19026937]
[1734317344808,0.02311546,3968.2,3967.8,2.01619]
[1734317345092,0.8087,3968.3,3967.7,0.19026937]
[1734317345308,0.8087,3968.7,3968.1,2.01606]
[1734317345510,0.0231259,3968.2,3968.1,2.01606]
[1734317345837,0.8087,3968.7,3968.1,2.01606]
[1734317346218,0.8087,3968.7,3967.9,2.01617]
[1734317346543,0.02317578,3968.6,3967.7,2.20652937]
[1734317346889,0.02317578,3968.6,3967.8,2.0162]
[1734317348067,0.02317578,3968.6,3967.7,0.19026937]
[1734317348206,0.7566,3968.5,3967.7,0.19026937]
[1734317348520,0.7566,3967.9,3967.7,0.19026937]
[1734317348720,0.327676,3967.8,3967.7,0.19026937]
[1734317348948,0.02341993,3967.8,3967.7,0.19026937]
[1734317353017,3.37359993,3967.8,3967.7,0.19026937]
[1734317355982,0.85331993,3967.8,3967.7,0.19026937]
[1734317359667,0.02415563,3967.8,3967.7,0.19026937]
[1734317360004,0.8185,3969.3,3967.7,0.19026937]
[1734317360148,5.15571512,3969.4,3967.7,0.19026937]
[1734317360149,0.8185,3968.8,3967.7,0.19026937]
[1734317360349,2.5198,3968.6,3967.7,0.19026937]
[1734317360664,3.14054284,3969.2,3967.7,0.19026937]
[1734317360665,3.36195404,3968.5,3967.7,0.19026937]
[1734317361199,3.36195404,3968.5,3968.1,2.01603]
[1734317361200,0.02360404,3968.5,3968.1,2.01603]
[1734317361398,0.02360404,3968.5,3967.8,0.8053]
[1734317361399,0.02360404,3968.5,3967.8,1.12171098]
[1734317361540,0.8171,3968.9,3967.9,2.01616]
[1734317361940,0.02364145,3968.8,3967.9,2.01616]
[1734317362490,0.02364145,3968.8,3967.8,0.8053]
[1734317362893,0.02364145,3968.8,3967.8,2.82152]
[1734317363133,0.02364145,3968.8,3967.8,0.8053]
[1734317363446,0.02364145,3968.8,3968.1,2.01606]
[1734317363898,0.02364145,3968.8,3967.8,0.8053]
[1734317364250,2.51975,3968.7,3967.7,0.19026937]
[1734317364455,0.02403361,3968.6,3967.7,0.19026937]
[1734317365148,0.8171,3968.9,3967.7,0.19026937]
[1734317365355,0.02402114,3968.5,3967.7,0.19026937]
[1734317365551,0.8171,3968.9,3967.7,0.19026937]
[1734317365772,0.02400867,3968.4,3967.7,0.19026937]
[1734317366064,2.51934,3969.3,3967.7,0.19026937]
[1734317366065,0.8240962,3968.3,3967.7,0.19026937]
[1734317366304,2.52013,3968.1,3967.7,0.19026937]
[1734317366663,0.02405781,3968.0,3967.7,0.19026937]
[1734317366863,0.35848659,3968.0,3967.7,0.19026937]
[1734317367419,0.02405781,3968.0,3967.7,0.19026937]
[1734317367761,2.52026,3967.9,3967.7,0.19026937]
[1734317367971,0.8001,3967.8,3967.7,0.19026937]
[1734317368412,0.82413286,3967.8,3967.7,0.19026937]
[1734317370517,0.82413286,3967.8,3965.7,2.01727]
[1734317370518,2.52099,3966.7,3965.8,0.1282261]
[1734317371079,2.52118,3966.4,3965.3,1.0371938]
[1734317371217,2.52132,3966.2,3965.3,0.2611938]
[1734317371576,2.79732268,3966.1,3965.1,0.12418401]
[1734317371721,2.79732268,3966.1,3964.9,0.776]
[1734317371722,2.52143,3966.0,3964.9,0.776]
[1734317371918,3.29712,3965.9,3964.5,0.8148]
[1734317372215,2.52156,3965.8,3964.5,2.83268]
[1734317372618,0.02377073,3965.7,3964.5,2.83268]
[1734317373026,0.02377073,3965.7,3964.6,2.01784]
[1734317373339,3.29712,3965.9,3964.6,2.01784]
[1734317373554,0.329712,3965.8,3964.6,2.01784]
[1734317373723,0.35349522,3965.8,3964.6,2.01784]
[1734317374566,0.3519468,3965.8,3964.5,0.8148]
[1734317374727,2.54535322,3965.8,3964.5,0.8148]
[1734317375370,2.54535322,3965.8,3964.5,2.8327]
[1734317375719,0.02378322,3965.8,3964.2,2.01802]
[1734317375959,2.52192,3965.3,3964.1,0.831]
[1734317376426,0.03309767,3965.2,3964.1,0.831]
[1734317376621,0.25550177,3965.1,3964.1,0.831]
[1734317376826,0.03309767,3965.2,3964.1,0.831]
[1734317376827,0.03309767,3965.2,3964.1,1.14741098]
[1734317377074,0.7872,3965.7,3964.1,1.14741098]
[1734317377075,3.30885,3965.7,3964.4,2.01791]
[1734317377225,2.52176,3965.5,3964.1,2.8491]
[1734317377625,0.0330177,3965.4,3964.3,2.018]
[1734317378058,0.33419077,3965.4,3964.3,2.018]
[1734317378270,0.36720847,3965.4,3964.1,0.831]
[1734317378472,0.7872,3965.7,3964.4,2.01795]
[1734317379051,0.7872,3965.7,3964.1,1.14741098]
[1734317379289,0.7872,3965.7,3964.2,0.31641098]
[1734317379443,0.7872,3965.7,3964.8,2.0177]
[1734317380359,0.7872,3965.7,3965.0,2.01763]
[1734317380540,0.03309432,3965.6,3965.0,2.01763]
[1734317380741,0.7872,3965.7,3965.1,2.01759]
[1734317381000,0.7872,3965.7,3964.9,0.8163]
[1734317381343,0.03309432,3965.6,3964.9,0.8163]
[1734317381584,0.7872,3965.7,3964.9,0.8163]
[1734317381787,0.03307558,3965.5,3964.9,0.8163]
[1734317382088,0.03309432,3965.6,3964.9,0.8163]
[1734317382291,0.03305685,3965.4,3964.8,2.01772]
[1734317382502,0.7872,3965.7,3964.6,0.7769]
[1734317382503,0.03307558,3965.5,3964.6,0.7769]
[1734317382657,0.03303811,3965.3,3964.6,0.7769]
[1734317382862,0.03305685,3965.4,3964.5,2.01787]
[1734317383041,0.03301937,3965.2,3964.5,2.01787]
[1734317383241,0.03307894,3965.1,3964.3,0.7769]
[1734317383441,0.7552,3965.0,3964.2,2.01802]
[1734317383692,0.7552,3965.0,3964.1,2.0181]
[1734317383838,0.03304146,3964.9,3964.1,2.0181]
[1734317384485,0.03304146,3964.9,3964.2,2.01805]
[1734317384693,0.03304146,3964.9,3964.1,2.01811]
[1734317384899,0.03304146,3964.9,3964.0,0.7769]
[1734317385046,0.03304146,3964.9,3964.2,2.01805]
[1734317385584,0.7552,3965.0,3964.2,2.01805]
[1734317386734,0.7552,3965.0,3964.0,0.7769]
[1734317386934,0.7552,3965.0,3964.2,2.01805]
[1734317387802,0.7552,3965.0,3963.9,2.51107]
[1734317388006,0.7552,3965.0,3963.9,0.49291]
[1734317388304,0.7552,3965.0,3964.2,2.01806]
[1734317389329,0.7552,3965.0,3963.9,0.49291]
[1734317389566,0.7552,3965.0,3964.4,2.01793]
[1734317390514,0.7552,3965.0,3964.5,2.01787]
[1734317391044,0.49935608,3966.2,3964.2,0.7769]
[1734317391045,0.7552,3965.3,3964.2,0.7769]
[1734317391242,0.7552,3965.3,3964.2,2.79495]
[1734317391547,0.7552,3965.3,3964.4,2.01793]
[1734317392048,0.7552,3965.3,3964.2,2.01804]
[1734317392228,0.327705,3965.2,3964.2,2.01804]
[1734317392408,0.327705,3965.2,3964.0,0.12551699]
[1734317392606,0.7552,3965.1,3963.8,2.01825]
[1734317392943,0.7552,3964.9,3963.6,0.64001066]
[1734317393131,0.7552,3964.6,3963.5,2.0184]
[1734317393553,0.7552,3964.6,3963.1,0.7769]
[1734317393554,3.27753,3964.6,3963.2,2.01852]
[1734317393740,3.27753,3964.6,3963.1,0.7769]
[1734317393741,0.327753,3964.5,3963.1,0.7769]
[1734317393934,0.7552,3964.4,3963.1,0.7769]
[1734317394853,0.7552,3964.4,3963.3,2.01849]
[1734317395056,2.52252,3964.3,3963.1,1.28995704]
[1734317395241,0.3605473,3964.2,3963.1,0.51305704]
[1734317395440,0.3605473,3964.2,3963.2,2.01857]
[1734317395643,0.7552,3964.4,3963.1,0.64104404]
[1734317395844,0.7552,3964.4,3963.6,2.01831]
[1734317397191,0.7552,3964.4,3963.4,0.751]
[1734317397334,2.63716314,3965.7,3963.4,0.751]
[1734317397335,0.8314,3964.7,3963.4,0.751]
[1734317397536,0.8314,3964.7,3964.1,2.01809]
[1734317398469,0.8314,3964.7,3963.5,2.01841]
[1734317398683,0.8314,3964.7,3963.8,2.01823]
[1734317399698,0.8314,3964.7,3963.5,2.01837]
[1734317399895,3.35367,3964.7,3963.5,2.01837]
[1734317400043,0.335367,3964.6,3963.5,2.01837]
[1734317400237,0.335367,3964.6,3963.7,2.01829]
[1734317400985,0.8314,3964.7,3963.6,0.28149553]
[1734317401191,0.8314,3964.7,3963.6,2.01836]
[1734317401365,0.8314,3964.7,3963.6,2.01833]
[1734317401768,0.8314,3964.7,3963.1,1.60765257]
[1734317401964,0.8314,3964.7,3963.2,0.28149553]
[1734317402204,0.8314,3964.7,3963.4,0.8242]
[1734317402377,0.8314,3964.7,3964.2,2.01802]
[1734317402978,0.8314,3964.7,3963.1,0.8242]
[1734317403233,2.52251,3964.3,3963.1,0.8242]
[1734317403442,0.8056,3963.8,3962.6,2.84307]
[1734317403733,2.50491711,3963.7,3962.1,0.8242]
[1734317403941,2.50491711,3963.7,3962.6,0.50733733]
[1734317404097,0.8056,3963.6,3962.4,2.01894]
[1734317404311,0.8056,3963.6,3962.1,2.84328]
[1734317404598,0.8056,3963.3,3962.2,2.01907]
[1734317405321,3.661628,3963.3,3962.0,0.39328856]
[1734317405481,3.34539,3963.7,3962.0,0.89185435]
[1734317405681,2.52322,3963.2,3962.0,0.89185435]
[1734317405896,0.8225,3963.1,3962.0,0.89185435]
[1734317406107,0.334572,3963.0,3961.9,2.0192]
[1734317406310,0.8225,3962.9,3961.6,2.01935]
[1734317406618,0.8225,3962.9,3961.5,0.39382366]
[1734317406823,0.8225,3962.9,3961.7,2.01929]
[1734317407321,5.16012314,3963.6,3961.5,0.88830615]
[1734317407322,0.8026,3962.7,3961.5,0.88830615]
[1734317407689,0.8026,3962.7,3962.1,2.0191]
[1734317408829,0.7921,3963.8,3962.2,0.8262]
[1734317409132,0.7921,3963.8,3962.5,2.01892]
[1734317409336,0.7921,3963.8,3962.2,1.08684256]
[1734317409495,0.7921,3963.8,3962.5,2.01888]
[1734317410651,0.7921,3963.8,3962.6,2.01885]
[1734317410858,0.59520731,3963.7,3962.6,2.01885]
[1734317410992,0.7795,3963.6,3962.3,2.019]
[1734317411197,0.7795,3963.6,3962.4,2.01896]
[1734317411411,0.38975673,3963.5,3961.8,0.8262]
[1734317411609,2.52309,3963.4,3961.9,2.01919]
[1734317411857,2.52309,3963.4,3961.5,1.44254094]
[1734317411858,0.7759,3963.2,3961.5,0.39382366]
[1734317412000,0.7759,3963.2,3962.0,2.01917]
[1734317413224,0.7759,3963.2,3961.5,0.39382366]
[1734317413451,2.52287,3963.8,3961.5,0.39382366]
[1734317413452,0.807,3962.7,3961.5,0.39382366]
[1734317414260,3.33054,3962.7,3961.5,0.39382366]
[1734317414398,0.7505,3962.4,3961.0,0.26060985]
[1734317414602,0.7505,3962.4,3960.8,0.12467595]
[1734317414839,2.63716314,3962.5,3960.8,0.12467595]
[1734317414840,0.7505,3962.2,3960.8,0.12467595]
[1734317416166,0.761,3962.1,3960.9,2.01969]
[1734317416474,0.761,3962.0,3960.9,2.01969]
[1734317416690,0.761,3962.0,3961.3,2.01952]
[1734317416978,0.761,3962.0,3960.9,0.8315]
[1734317417160,0.761,3962.0,3961.0,4.19056176]
[1734317417371,0.761,3962.0,3961.4,2.01948]
[1734317418528,0.761,3962.0,3960.9,0.8315]
[1734317418529,0.761,3962.0,3961.7,2.0193]
[1734317418729,2.52315,3963.3,3961.2,0.28149553]
[1734317418982,0.761,3963.1,3961.9,2.01922]
[1734317419126,0.761,3963.1,3962.0,2.01917]
[1734317420006,0.761,3963.1,3962.1,2.01911]
[1734317420502,0.761,3963.1,3961.8,0.08255551]
[1734317420816,0.51603131,3963.2,3961.8,0.08255551]
[1734317420817,0.761,3962.9,3961.8,0.08255551]
[1734317421245,0.761,3962.9,3962.1,2.01911]
[1734317421650,0.761,3962.9,3961.9,2.01918]
[1734317421896,0.761,3962.9,3961.8,0.08255551]
[1734317422077,0.761,3962.9,3961.8,2.10183551]
[1734317422294,0.7981,3962.7,3961.8,0.08255551]
[1734317422468,3.32164,3962.7,3961.8,0.08255551]
[1734317422671,0.7981,3962.6,3961.8,0.08255551]
[1734317423007,0.7981,3962.4,3961.8,0.08255551]
[1734317423188,3.32205,3962.1,3961.8,0.08255551]
[1734317423395,0.7981,3961.9,3961.8,0.08255551]
[1734317425151,2.52432,3961.5,3960.0,2.02019]
[1734317425353,0.8099,3961.3,3960.0,2.02019]
[1734317425551,0.8099,3961.1,3959.8,2.02028]
[1734317426153,0.8099,3961.1,3959.6,0.39401745]
[1734317426359,0.8099,3960.9,3959.6,2.02038]
[1734317427347,0.8099,3960.9,3959.6,2.27292]
[1734317427511,0.8099,3960.9,3959.4,0.1629398]
[1734317427512,0.8099,3960.9,3959.7,2.27286]
[1734317427653,0.8099,3960.9,3959.4,0.1629398]
[1734317428657,0.8099,3960.9,3959.7,2.27286]
[1734317429258,0.8099,3960.9,3959.8,2.27281]
[1734317429620,0.8099,3960.9,3960.1,2.27266]
[1734317429775,0.8099,3960.9,3960.2,2.27259]
[1734317429975,0.8099,3960.9,3960.3,2.27254]
[1734317430591,0.8099,3960.9,3959.5,0.7741]
[1734317430592,0.8099,3960.9,3960.0,2.2727]
[1734317431158,0.8099,3960.9,3959.8,2.27283]
[1734317431564,0.8099,3960.9,3959.4,0.1629398]
[1734317431754,0.8099,3960.9,3959.4,0.44443533]
[1734317431955,0.8099,3960.9,3959.8,2.27284]
[1734317432194,0.8099,3960.9,3959.9,2.27277]
[1734317432576,0.0367771,3960.8,3959.5,0.28149553]
[1734317432777,0.0367771,3960.8,3959.8,2.27283]
[1734317432978,0.8085,3960.7,3959.6,2.27295]
[1734317433611,0.03675315,3960.6,3959.6,2.27295]
[1734317433810,0.781,3960.5,3959.4,0.1629398]
[1734317434015,0.81775688,3960.5,3959.4,0.1629398]
[1734317434326,0.781,3960.3,3959.4,0.1629398]
[1734317434525,0.33427569,3960.2,3959.4,0.1629398]
[1734317434681,0.781,3960.1,3959.4,0.1629398]
[1734317435104,0.03658184,3960.0,3959.4,0.1629398]
[1734317438443,0.03658184,3960.0,3959.7,2.27289]
[1734317438736,0.03658184,3960.0,3959.8,2.27282]
[1734317438948,0.781,3960.1,3959.9,2.27272]
[1734317439884,0.781,3960.1,3959.7,2.27285]
[1734317440285,0.781,3960.1,3959.4,0.1629398]
[1734317440499,0.781,3960.1,3960.0,2.27272]
[1734317442298,0.781,3960.1,3959.4,0.1629398]
[1734317442627,0.781,3960.1,3959.6,2.27291]
[1734317442926,0.781,3960.1,3959.4,0.1629398]
[1734317443704,0.781,3960.1,3959.4,2.4359998]
[1734317443909,0.03646144,3960.0,3959.4,0.1629398]
[1734317444246,0.03646144,3960.0,3959.8,2.27283]
[1734317444591,0.781,3960.1,3960.0,2.27272]
[1734317444924,0.7672,3961.4,3959.9,2.27278]
[1734317445105,0.7672,3961.4,3960.9,2.2722]
[1734317445306,0.7672,3961.4,3960.0,2.27272]
[1734317445307,0.7672,3961.4,3960.1,0.7825]
[1734317445626,0.7672,3961.4,3961.3,2.27198]
[1734317446477,0.7672,3961.4,3960.7,2.2723]
[1734317446478,0.7672,3961.4,3960.7,2.27226]
[1734317446650,0.7672,3961.4,3960.3,2.27255]
[1734317446850,0.7672,3961.4,3960.8,2.01977]
[1734317448262,0.7672,3961.4,3961.0,2.01969]
[1734317448467,0.7672,3961.4,3961.0,2.01966]
[1734317448779,0.7672,3961.4,3960.4,2.01999]
[1734317448988,0.7672,3961.4,3960.1,0.7825]
[1734317449164,0.7672,3961.4,3961.1,2.01961]
[1734317449368,0.7672,3961.4,3961.2,2.01957]
[1734317449778,0.7611,3962.3,3961.2,2.01957]
[1734317449982,0.03537445,3962.2,3961.6,2.01938]
[1734317450187,0.12922037,3962.1,3961.6,2.01938]
[1734317451907,0.12922037,3962.1,3961.1,2.01963]
[1734317451908,0.12922037,3962.1,3961.2,2.01955]
[1734317452398,0.03610921,3962.0,3960.9,0.804]
[1734317453206,0.03610921,3962.0,3961.4,2.01948]
[1734317453417,0.12922037,3962.1,3961.4,2.01948]
[1734317453755,0.12922037,3962.1,3960.9,0.804]
[1734317454007,0.7611,3962.3,3961.5,0.28149553]
[1734317454314,0.50893075,3963.5,3961.5,0.28149553]
[1734317454315,0.8033,3963.0,3961.5,0.28149553]
[1734317454473,0.8033,3963.0,3960.8,0.12425618]
[1734317454799,2.64344628,3963.1,3960.6,0.7899]
[1734317454800,0.8033,3961.9,3960.6,2.01985]
[1734317454977,0.03399976,3961.8,3960.7,2.01984]
[1734317455292,0.03399976,3961.8,3960.3,0.7899]
[1734317455293,0.03399976,3961.8,3960.5,2.0199]
[1734317455605,0.33613598,3961.7,3960.6,2.01988]
[1734317455769,0.83735959,3961.6,3960.3,2.02003]
[1734317455973,0.7952,3961.5,3960.3,2.02003]
[1734317456180,0.7952,3961.5,3960.4,2.01997]
[1734317456370,0.03351198,3961.4,3960.0,2.0202]
[1734317456565,0.03351198,3961.4,3960.4,2.01997]
[1734317458212,0.03351198,3961.4,3959.9,0.7899]
[1734317458374,0.03351198,3961.4,3960.3,2.02003]
[1734317458570,0.03351198,3961.4,3959.6,1.04871728]
[1734317458571,0.7952,3961.2,3959.6,1.04871728]
[1734317458792,0.7952,3961.2,3960.2,2.02009]
[1734317459107,0.03336083,3961.1,3960.2,2.02009]
[1734317459666,0.03336083,3961.1,3960.3,2.02001]
[1734317459872,0.7952,3961.2,3959.8,1.04871728]
[1734317460072,0.7952,3961.2,3960.6,2.01989]
[1734317460073,0.03334886,3961.0,3960.6,2.01989]
[1734317460272,0.03336083,3961.1,3960.6,2.01989]
[1734317460468,0.7952,3961.2,3960.9,2.01974]
[1734317460727,0.7952,3961.2,3961.0,2.01968]
[1734317461440,2.52349,3962.8,3960.5,2.01994]
[1734317461441,0.7616,3961.8,3961.4,2.01943]
[1734317461641,0.7616,3961.8,3960.6,0.28149553]
[1734317461642,0.7616,3961.8,3960.6,1.04871728]
[1734317461845,0.7616,3961.8,3960.0,2.63174724]
[1734317461846,0.7616,3961.7,3960.2,1.04871728]
[1734317462050,0.7616,3961.7,3960.7,2.01979]
[1734317462405,0.7616,3961.7,3960.9,2.01973]
[1734317462911,0.03337879,3961.6,3960.9,2.01973]
[1734317463943,0.03337879,3961.6,3961.0,2.01968]
[1734317464143,0.03337879,3961.6,3961.1,2.01963]
[1734317464442,2.52337,3963.0,3961.1,2.01963]
[1734317464443,0.8234,3962.8,3961.2,5.10124668]
[1734317464648,0.8234,3962.8,3961.3,2.17630487]
[1734317464843,0.8234,3962.8,3962.1,2.01912]
[1734317465231,0.8234,3962.8,3962.2,2.01906]
[1734317465858,0.8234,3962.8,3961.3,3.34973281]
[1734317466076,0.8234,3962.8,3961.8,2.01925]
[1734317466293,0.8234,3962.8,3961.9,2.01922]
[1734317466574,0.8234,3962.8,3962.0,2.01917]
[1734317467075,0.03084309,3962.7,3962.5,2.01891]
[1734317467430,0.7785,3963.5,3962.9,2.01872]
[1734317467634,0.7785,3963.5,3962.0,2.84321281]
[1734317467829,0.7785,3963.5,3961.9,2.89040589]
[1734317467830,0.7785,3963.5,3962.1,3.22474213]
[1734317468041,0.7785,3963.5,3962.2,3.50623766]
[1734317468268,0.03092682,3963.4,3962.2,2.9203224]
[1734317468469,0.7785,3963.5,3963.2,2.01854]
[1734317469462,0.7785,3963.5,3962.8,2.01874]
[1734317469976,0.03162855,3963.4,3963.0,2.01866]
[1734317470131,0.7785,3963.5,3963.0,2.01866]
[1734317470470,0.7785,3963.5,3962.4,2.01897]
[1734317470673,0.7785,3963.5,3963.3,2.0185]
[1734317471345,0.7785,3963.5,3963.0,2.01863]
[1734317471535,0.7785,3963.5,3962.4,2.01897]
[1734317471536,0.7785,3963.5,3963.1,2.0186]
[1734317471731,0.7785,3963.5,3962.3,0.8187]
[1734317471732,0.7785,3963.5,3962.8,2.01873]
[1734317472568,0.7785,3963.5,3962.2,0.12400832]
[1734317472767,0.7785,3963.5,3961.8,0.7589]
[1734317473008,0.8510974,3963.4,3962.0,2.01916]
[1734317473215,0.8185,3963.4,3962.0,2.01916]
[1734317473421,0.03250692,3963.3,3962.0,2.01916]
[1734317473698,0.8185,3963.2,3962.0,2.01916]
[1734317474004,2.55568692,3963.3,3961.1,2.01961]
[1734317474005,0.8296,3962.8,3961.1,2.01961]
[1734317474294,0.8296,3962.0,3960.6,2.01988]
[1734317474796,0.8296,3962.0,3960.1,1.30891891]
[1734317474797,0.7848,3961.8,3960.3,2.02003]
[1734317475109,5.16242687,3962.6,3960.1,0.26020163]
[1734317475110,0.7848,3961.6,3960.1,0.26020163]
[1734317475317,0.7848,3961.6,3960.3,0.28149553]
[1734317475612,0.7848,3961.6,3960.9,2.0197]
[1734317475753,0.7848,3961.6,3960.9,2.01973]
[1734317475958,0.7848,3961.6,3960.6,2.01986]
[1734317476152,0.7848,3961.6,3960.3,0.12839615]